[Event "Titled Tuesday Blitz November 22 Early 2022"]
[White "Arbunic Castro, Giovanna"]
[Black "Zaichenko, Daria"]
[WhiteFideId "3400549"]
[BlackFideId "4197453"]
[WhiteElo "1973"]
[BlackElo "2039"]
[Result "0-1"]
[Round "08"]
[TimeControl "180+1"]
[Date "2022.11.23"]
[WhiteClock "0:00:02"]
[BlackClock "0:00:20"]

1. e4 {[%clk 0:02:47]}  c5 {[%clk 0:02:59]} 2. g3 {[%clk 0:02:46]}  d6 {[%clk 0:02:50]} 3. Bg2 {[%clk 0:02:46]}  Nf6 {[%clk 0:02:51]} 4. Ne2 {[%clk 0:02:46]}  Nc6 {[%clk 0:02:51]} 5. O-O {[%clk 0:02:47]}  e5 {[%clk 0:02:51]} 6. c3 {[%clk 0:02:47]}  Be6 {[%clk 0:02:51]} 7. d4 {[%clk 0:02:46]}  Be7 {[%clk 0:02:49]} 8. d5 {[%clk 0:02:46]}  Bd7 {[%clk 0:02:47]} 9. dxc6 {[%clk 0:02:45]}  Bxc6 {[%clk 0:02:47]} 10. f3 {[%clk 0:02:40]}  O-O {[%clk 0:02:46]} 11. Be3 {[%clk 0:02:40]}  b5 {[%clk 0:02:45]} 12. Nd2 {[%clk 0:02:37]}  d5 {[%clk 0:02:45]} 13. exd5 {[%clk 0:02:34]}  Nxd5 {[%clk 0:02:45]} 14. Bf2 {[%clk 0:02:30]}  f5 {[%clk 0:02:45]} 15. c4 {[%clk 0:02:24]}  Nb4 {[%clk 0:02:42]} 16. Nc3 {[%clk 0:02:18]}  Nd3 {[%clk 0:02:36]} 17. cxb5 {[%clk 0:02:16]}  Bb7 {[%clk 0:02:35]} 18. Nc4 {[%clk 0:02:04]}  Bf6 {[%clk 0:02:14]} 19. Qd2 {[%clk 0:01:52]}  e4 {[%clk 0:02:13]} 20. fxe4 {[%clk 0:01:44]}  Nxf2 {[%clk 0:02:11]} 21. Kxf2 {[%clk 0:01:39]}  Bd4+ {[%clk 0:02:04]} 22. Ke2 {[%clk 0:01:33]}  fxe4 {[%clk 0:02:02]} 23. Nxe4 {[%clk 0:01:16]}  Qd7 {[%clk 0:01:36]} 24. Ncd6 {[%clk 0:01:00]}  Qg4+ {[%clk 0:01:32]} 25. Kd3 {[%clk 0:00:57]}  Bd5 {[%clk 0:01:24]} 26. Rxf8+ {[%clk 0:00:47]}  Rxf8 {[%clk 0:01:23]} 27. h3 {[%clk 0:00:41]}  Qg6 {[%clk 0:01:15]} 28. Rf1 {[%clk 0:00:35]}  Rd8 {[%clk 0:01:08]} 29. Qf4 {[%clk 0:00:33]}  Bxe4+ {[%clk 0:00:52]} 30. Bxe4 {[%clk 0:00:31]}  Qxd6 {[%clk 0:00:49]} 31. Qf5 {[%clk 0:00:25]}  Be5+ {[%clk 0:00:29]} 32. Ke3 {[%clk 0:00:20]}  Qd2+ {[%clk 0:00:25]} 33. Kf3 {[%clk 0:00:15]}  Rf8 {[%clk 0:00:24]} 34. Qxf8+ {[%clk 0:00:14]}  Kxf8 {[%clk 0:00:24]} 35. Kg4+ {[%clk 0:00:13]}  Ke7 {[%clk 0:00:24]} 36. Rf5 {[%clk 0:00:12]}  Bf6 {[%clk 0:00:21]} 37. a4 {[%clk 0:00:08]}  Qe2+ {[%clk 0:00:21]} 38. Bf3 {[%clk 0:00:07]}  Qe6 {[%clk 0:00:20]} 39. Kf4 {[%clk 0:00:05]}  g5+ {[%clk 0:00:20]} 40. Kg4 {[%clk 0:00:02]}  h5+ {[%clk 0:00:20]} 0-1


[Site "https://www.chess.com"]

[Event "Titled Tuesday Blitz November 22 Early 2022"]
[White "Baskakov, Egor"]
[Black "Osmak, Yuliia"]
[WhiteFideId "24197866"]
[BlackFideId "14101602"]
[WhiteElo "2211"]
[BlackElo "2328"]
[Result "0-1"]
[Round "08"]
[TimeControl "180+1"]
[Date "2022.11.23"]
[WhiteClock "0:00:15"]
[BlackClock "0:00:08"]

1. e4 {[%clk 0:03:00]}  c5 {[%clk 0:02:55]} 2. Nf3 {[%clk 0:02:59]}  d6 {[%clk 0:02:53]} 3. d4 {[%clk 0:02:59]}  cxd4 {[%clk 0:02:52]} 4. Nxd4 {[%clk 0:03:00]}  Nf6 {[%clk 0:02:52]} 5. Nc3 {[%clk 0:03:00]}  a6 {[%clk 0:02:52]} 6. a4 {[%clk 0:03:00]}  e6 {[%clk 0:02:48]} 7. g3 {[%clk 0:03:00]}  Be7 {[%clk 0:02:48]} 8. Bg2 {[%clk 0:02:59]}  Nc6 {[%clk 0:02:45]} 9. O-O {[%clk 0:02:59]}  O-O {[%clk 0:02:44]} 10. Nce2 {[%clk 0:02:45]}  Bd7 {[%clk 0:02:39]} 11. c4 {[%clk 0:02:44]}  Rc8 {[%clk 0:02:38]} 12. b3 {[%clk 0:02:45]}  Nb4 {[%clk 0:02:18]} 13. h3 {[%clk 0:02:43]}  Bc6 {[%clk 0:02:15]} 14. Bd2 {[%clk 0:02:37]}  d5 {[%clk 0:02:02]} 15. Nxc6 {[%clk 0:02:32]}  bxc6 {[%clk 0:01:59]} 16. exd5 {[%clk 0:02:32]}  cxd5 {[%clk 0:01:43]} 17. cxd5 {[%clk 0:02:32]}  Nfxd5 {[%clk 0:01:42]} 18. Nf4 {[%clk 0:02:27]}  Bf6 {[%clk 0:01:32]} 19. Rc1 {[%clk 0:02:23]}  Rxc1 {[%clk 0:01:19]} 20. Qxc1 {[%clk 0:02:20]}  Nxf4 {[%clk 0:01:18]} 21. Bxf4 {[%clk 0:02:21]}  Nd3 {[%clk 0:01:18]} 22. Qe3 {[%clk 0:02:21]}  Nxf4 {[%clk 0:01:18]} 23. Qxf4 {[%clk 0:02:22]}  Qd3 {[%clk 0:01:14]} 24. b4 {[%clk 0:01:48]}  Qb3 {[%clk 0:01:13]} 25. a5 {[%clk 0:01:45]}  Bc3 {[%clk 0:01:04]} 26. Be4 {[%clk 0:01:25]}  Qxb4 {[%clk 0:01:02]} 27. Rd1 {[%clk 0:01:16]}  f5 {[%clk 0:00:56]} 28. Bd3 {[%clk 0:00:56]}  Qxf4 {[%clk 0:00:50]} 29. gxf4 {[%clk 0:00:57]}  Bxa5 {[%clk 0:00:49]} 30. Bxa6 {[%clk 0:00:58]}  Bc7 {[%clk 0:00:46]} 31. Bc4 {[%clk 0:00:57]}  Re8 {[%clk 0:00:45]} 32. Rd4 {[%clk 0:00:54]}  Kf7 {[%clk 0:00:38]} 33. Bb5 {[%clk 0:00:54]}  Re7 {[%clk 0:00:37]} 34. Kg2 {[%clk 0:00:53]}  Kf6 {[%clk 0:00:36]} 35. Kf3 {[%clk 0:00:50]}  h6 {[%clk 0:00:31]} 36. h4 {[%clk 0:00:44]}  g6 {[%clk 0:00:27]} 37. Rc4 {[%clk 0:00:43]}  Bb8 {[%clk 0:00:26]} 38. Rc6 {[%clk 0:00:43]}  Rd7 {[%clk 0:00:20]} 39. Rb6 {[%clk 0:00:36]}  Rd8 {[%clk 0:00:18]} 40. Bc4 {[%clk 0:00:35]}  Bd6 {[%clk 0:00:18]} 41. Bb3 {[%clk 0:00:32]}  Ke7 {[%clk 0:00:17]} 42. Rb7+ {[%clk 0:00:30]}  Rd7 {[%clk 0:00:18]} 43. Rb6 {[%clk 0:00:30]}  Rc7 {[%clk 0:00:18]} 44. Kg2 {[%clk 0:00:22]}  Rc3 {[%clk 0:00:16]} 45. Ba2 {[%clk 0:00:18]}  Rc2 {[%clk 0:00:15]} 46. Bb3 {[%clk 0:00:19]}  Rxf2+ {[%clk 0:00:14]} 47. Kg3 {[%clk 0:00:15]}  Rxf4 {[%clk 0:00:09]} 48. Kh3 {[%clk 0:00:16]}  Rf3+ {[%clk 0:00:09]} 49. Kg2 {[%clk 0:00:16]}  Rc3 {[%clk 0:00:10]} 50. Kf2 {[%clk 0:00:15]}  Bc5+ {[%clk 0:00:08]} 0-1


[Site "https://www.chess.com"]

[Event "Titled Tuesday Blitz November 22 Early 2022"]
[White "Bazeev, German"]
[Black "Orlov, Georgi"]
[WhiteFideId "24119350"]
[BlackFideId "2011271"]
[WhiteElo "2493"]
[BlackElo "2549"]
[Result "1-0"]
[Round "08"]
[TimeControl "180+1"]
[Date "2022.11.23"]
[WhiteClock "0:00:32"]
[BlackClock "0:00:20"]

1. d4 {[%clk 0:03:00]}  Nf6 {[%clk 0:02:58]} 2. c4 {[%clk 0:03:01]}  Nc6 {[%clk 0:02:57]} 3. Nf3 {[%clk 0:03:01]}  e6 {[%clk 0:02:57]} 4. Bg5 {[%clk 0:03:00]}  h6 {[%clk 0:02:55]} 5. Bxf6 {[%clk 0:02:57]}  Qxf6 {[%clk 0:02:55]} 6. Nc3 {[%clk 0:02:57]}  Bb4 {[%clk 0:02:47]} 7. e3 {[%clk 0:02:58]}  d6 {[%clk 0:02:44]} 8. Bd3 {[%clk 0:02:53]}  Bxc3+ {[%clk 0:02:40]} 9. bxc3 {[%clk 0:02:53]}  e5 {[%clk 0:02:40]} 10. Nd2 {[%clk 0:02:52]}  O-O {[%clk 0:02:35]} 11. O-O {[%clk 0:02:48]}  Qe7 {[%clk 0:02:34]} 12. Qc2 {[%clk 0:02:42]}  f5 {[%clk 0:02:32]} 13. Rae1 {[%clk 0:02:42]}  Bd7 {[%clk 0:02:16]} 14. f4 {[%clk 0:02:41]}  e4 {[%clk 0:02:02]} 15. Be2 {[%clk 0:02:41]}  Nd8 {[%clk 0:01:53]} 16. Rf2 {[%clk 0:02:33]}  c5 {[%clk 0:01:53]} 17. g4 {[%clk 0:02:31]}  fxg4 {[%clk 0:01:34]} 18. Qxe4 {[%clk 0:02:13]}  Qf7 {[%clk 0:01:25]} 19. d5 {[%clk 0:02:01]}  a6 {[%clk 0:00:54]} 20. Bd3 {[%clk 0:01:58]}  Bf5 {[%clk 0:00:52]} 21. Qxf5 {[%clk 0:01:58]}  Qxf5 {[%clk 0:00:52]} 22. Bxf5 {[%clk 0:01:59]}  Rxf5 {[%clk 0:00:52]} 23. e4 {[%clk 0:01:56]}  Rf8 {[%clk 0:00:49]} 24. e5 {[%clk 0:01:57]}  dxe5 {[%clk 0:00:45]} 25. fxe5 {[%clk 0:01:56]}  Rxf2 {[%clk 0:00:45]} 26. Kxf2 {[%clk 0:01:57]}  Nf7 {[%clk 0:00:45]} 27. e6 {[%clk 0:01:48]}  Nd6 {[%clk 0:00:44]} 28. Ne4 {[%clk 0:01:48]}  Rf8+ {[%clk 0:00:42]} 29. Kg3 {[%clk 0:01:43]}  Nxc4 {[%clk 0:00:33]} 30. d6 {[%clk 0:01:33]}  Rf3+ {[%clk 0:00:30]} 31. Kg2 {[%clk 0:01:23]}  Rd3 {[%clk 0:00:20]} 32. e7 {[%clk 0:01:13]}  Kf7 {[%clk 0:00:20]} 33. Ng5+ {[%clk 0:00:32]} 1-0


[Site "https://www.chess.com"]

[Event "Titled Tuesday Blitz November 22 Early 2022"]
[White "Begunov, Konstantin"]
[Black "Can, Isik"]
[WhiteFideId "4118510"]
[BlackFideId "6383742"]
[WhiteElo "2140"]
[BlackElo "2374"]
[Result "0-1"]
[Round "08"]
[TimeControl "180+1"]
[Date "2022.11.23"]
[WhiteClock "0:00:04"]
[BlackClock "0:00:32"]

1. d4 {[%clk 0:03:00]}  d5 {[%clk 0:02:59]} 2. c4 {[%clk 0:03:00]}  c6 {[%clk 0:02:59]} 3. Nc3 {[%clk 0:03:01]}  Nf6 {[%clk 0:03:00]} 4. cxd5 {[%clk 0:03:00]}  cxd5 {[%clk 0:03:00]} 5. Bf4 {[%clk 0:02:58]}  Nc6 {[%clk 0:03:00]} 6. e3 {[%clk 0:02:58]}  Bf5 {[%clk 0:03:00]} 7. Bb5 {[%clk 0:02:53]}  e6 {[%clk 0:02:49]} 8. Qa4 {[%clk 0:02:53]}  Qb6 {[%clk 0:02:23]} 9. Nf3 {[%clk 0:02:52]}  Be7 {[%clk 0:02:16]} 10. Ne5 {[%clk 0:02:52]}  Rc8 {[%clk 0:02:15]} 11. Bg5 {[%clk 0:02:46]}  a6 {[%clk 0:02:11]} 12. Bxc6+ {[%clk 0:02:46]}  bxc6 {[%clk 0:02:12]} 13. O-O {[%clk 0:02:43]}  h6 {[%clk 0:01:57]} 14. Bh4 {[%clk 0:02:43]}  g5 {[%clk 0:01:53]} 15. Bg3 {[%clk 0:02:43]}  Qxb2 {[%clk 0:01:38]} 16. Qxa6 {[%clk 0:02:36]}  O-O {[%clk 0:01:28]} 17. Nxc6 {[%clk 0:02:12]}  Ba3 {[%clk 0:01:27]} 18. Nb5 {[%clk 0:01:29]}  Ra8 {[%clk 0:01:15]} 19. Qb7 {[%clk 0:01:21]}  Bd3 {[%clk 0:01:14]} 20. Ne7+ {[%clk 0:00:47]}  Kh7 {[%clk 0:01:13]} 21. Be5 {[%clk 0:00:19]}  Bxf1 {[%clk 0:01:05]} 22. Rxf1 {[%clk 0:00:16]}  Bxe7 {[%clk 0:01:02]} 23. Qxe7 {[%clk 0:00:15]}  Ng8 {[%clk 0:01:02]} 24. Qd7 {[%clk 0:00:13]}  Rad8 {[%clk 0:00:53]} 25. Qc6 {[%clk 0:00:13]}  Rc8 {[%clk 0:00:52]} 26. Qd7 {[%clk 0:00:13]}  Rc1 {[%clk 0:00:48]} 27. h4 {[%clk 0:00:10]}  Rxf1+ {[%clk 0:00:46]} 28. Kxf1 {[%clk 0:00:11]}  Qb1+ {[%clk 0:00:45]} 29. Ke2 {[%clk 0:00:11]}  Qxa2+ {[%clk 0:00:45]} 30. Kf3 {[%clk 0:00:12]}  Qa4 {[%clk 0:00:38]} 31. hxg5 {[%clk 0:00:11]}  hxg5 {[%clk 0:00:37]} 32. Bd6 {[%clk 0:00:10]}  Nf6 {[%clk 0:00:34]} 33. Qe7 {[%clk 0:00:08]}  Qd1+ {[%clk 0:00:31]} 34. Kg3 {[%clk 0:00:05]}  Ne4+ {[%clk 0:00:31]} 35. Kh2 {[%clk 0:00:05]}  Qh5+ {[%clk 0:00:32]} 36. Kg1 {[%clk 0:00:04]}  Ra8 {[%clk 0:00:32]} 0-1


[Site "https://www.chess.com"]

[Event "Titled Tuesday Blitz November 22 Early 2022"]
[White "Berezin, Viktor"]
[Black "Kuznetsov, Mikhail"]
[WhiteFideId "14107872"]
[BlackFideId "4117190"]
[WhiteElo "2310"]
[BlackElo "1981"]
[Result "0-1"]
[Round "08"]
[TimeControl "180+1"]
[Date "2022.11.23"]
[WhiteClock "0:00:41"]
[BlackClock "0:00:15"]

1. d4 {[%clk 0:02:59]}  Nf6 {[%clk 0:02:56]} 2. Nf3 {[%clk 0:02:58]}  g6 {[%clk 0:02:56]} 3. g3 {[%clk 0:02:56]}  Bg7 {[%clk 0:02:52]} 4. Bg2 {[%clk 0:02:56]}  O-O {[%clk 0:02:53]} 5. O-O {[%clk 0:02:56]}  d5 {[%clk 0:02:54]} 6. c4 {[%clk 0:02:55]}  c6 {[%clk 0:02:53]} 7. cxd5 {[%clk 0:02:55]}  cxd5 {[%clk 0:02:54]} 8. Nc3 {[%clk 0:02:55]}  Ne4 {[%clk 0:02:53]} 9. Nd2 {[%clk 0:02:54]}  Bxd4 {[%clk 0:02:34]} 10. Ndxe4 {[%clk 0:02:50]}  dxe4 {[%clk 0:02:31]} 11. Nxe4 {[%clk 0:02:51]}  Nc6 {[%clk 0:02:30]} 12. e3 {[%clk 0:02:48]}  Bg7 {[%clk 0:02:29]} 13. Qe2 {[%clk 0:02:42]}  Bf5 {[%clk 0:02:14]} 14. Rd1 {[%clk 0:02:36]}  Qb6 {[%clk 0:02:11]} 15. Nc3 {[%clk 0:02:35]}  Rfd8 {[%clk 0:01:59]} 16. Nd5 {[%clk 0:02:30]}  Qa6 {[%clk 0:01:52]} 17. Qxa6 {[%clk 0:02:19]}  bxa6 {[%clk 0:01:53]} 18. e4 {[%clk 0:02:19]}  Bg4 {[%clk 0:01:52]} 19. f3 {[%clk 0:02:13]}  Be6 {[%clk 0:01:42]} 20. Be3 {[%clk 0:02:12]}  Bxb2 {[%clk 0:01:36]} 21. Rab1 {[%clk 0:02:11]}  Bg7 {[%clk 0:01:21]} 22. f4 {[%clk 0:02:04]}  Bg4 {[%clk 0:01:18]} 23. Rdc1 {[%clk 0:01:59]}  Nd4 {[%clk 0:01:16]} 24. Kf2 {[%clk 0:02:00]}  e6 {[%clk 0:01:09]} 25. Nc7 {[%clk 0:01:56]}  Rac8 {[%clk 0:01:08]} 26. h3 {[%clk 0:01:56]}  Ne2 {[%clk 0:00:58]} 27. Rc4 {[%clk 0:01:55]}  Nc3 {[%clk 0:00:56]} 28. Rxc3 {[%clk 0:01:14]}  Bxc3 {[%clk 0:00:54]} 29. Nxa6 {[%clk 0:01:13]}  Rd1 {[%clk 0:00:35]} 30. Rxd1 {[%clk 0:01:04]}  Bxd1 {[%clk 0:00:36]} 31. e5 {[%clk 0:00:57]}  Rc4 {[%clk 0:00:26]} 32. Bf1 {[%clk 0:00:53]}  Ra4 {[%clk 0:00:24]} 33. Bxa7 {[%clk 0:00:47]}  Rxa2+ {[%clk 0:00:24]} 34. Ke3 {[%clk 0:00:47]}  Be1 {[%clk 0:00:20]} 35. Ke4 {[%clk 0:00:48]}  Bxg3 {[%clk 0:00:16]} 36. Bd4 {[%clk 0:00:45]}  Ra3 {[%clk 0:00:16]} 37. Bg2 {[%clk 0:00:41]}  Bc2# {[%clk 0:00:15]} 0-1


[Site "https://www.chess.com"]

[Event "Titled Tuesday Blitz November 22 Early 2022"]
[White "Boraso, Alessio"]
[Black "Grabinsky, Vladimir"]
[WhiteFideId "848077"]
[BlackFideId "14107074"]
[WhiteElo "2286"]
[BlackElo "2198"]
[Result "1-0"]
[Round "08"]
[TimeControl "180+1"]
[Date "2022.11.23"]
[WhiteClock "0:00:18"]
[BlackClock "0:00:01"]

1. e4 {[%clk 0:03:00]}  c5 {[%clk 0:02:56]} 2. c3 {[%clk 0:03:00]}  Nf6 {[%clk 0:02:53]} 3. e5 {[%clk 0:03:00]}  Nd5 {[%clk 0:02:54]} 4. Nf3 {[%clk 0:03:00]}  d6 {[%clk 0:02:51]} 5. d4 {[%clk 0:03:01]}  cxd4 {[%clk 0:02:50]} 6. cxd4 {[%clk 0:03:01]}  Nc6 {[%clk 0:02:50]} 7. Bc4 {[%clk 0:03:02]}  dxe5 {[%clk 0:02:50]} 8. Nxe5 {[%clk 0:03:00]}  e6 {[%clk 0:02:42]} 9. Nxc6 {[%clk 0:02:57]}  bxc6 {[%clk 0:02:42]} 10. O-O {[%clk 0:02:58]}  Bd6 {[%clk 0:02:40]} 11. Nc3 {[%clk 0:02:58]}  Qh4 {[%clk 0:02:30]} 12. g3 {[%clk 0:02:55]}  Qh3 {[%clk 0:02:23]} 13. Ne4 {[%clk 0:02:48]}  Bc7 {[%clk 0:02:16]} 14. Ng5 {[%clk 0:02:48]}  Qf5 {[%clk 0:01:59]} 15. Bd3 {[%clk 0:02:46]}  Qf6 {[%clk 0:01:59]} 16. Ne4 {[%clk 0:02:33]}  Qxd4 {[%clk 0:01:57]} 17. Qf3 {[%clk 0:02:14]}  h5 {[%clk 0:01:28]} 18. Rd1 {[%clk 0:02:12]}  Qe5 {[%clk 0:01:23]} 19. h4 {[%clk 0:01:41]}  a5 {[%clk 0:01:15]} 20. Ng5 {[%clk 0:01:24]}  Qf6 {[%clk 0:00:49]} 21. Qe2 {[%clk 0:01:20]}  Bb6 {[%clk 0:00:37]} 22. Ne4 {[%clk 0:01:18]}  Qe5 {[%clk 0:00:33]} 23. Kh2 {[%clk 0:00:33]}  f6 {[%clk 0:00:11]} 24. Qf3 {[%clk 0:00:26]}  Kf7 {[%clk 0:00:08]} 25. Rb1 {[%clk 0:00:22]}  g5 {[%clk 0:00:05]} 26. Nxg5+ {[%clk 0:00:21]}  Kg7 {[%clk 0:00:05]} 27. Ne4 {[%clk 0:00:18]}  Ra7 {[%clk 0:00:01]} 28. b3 {[%clk 0:00:18]} 1-0


[Site "https://www.chess.com"]

[Event "Titled Tuesday Blitz November 22 Early 2022"]
[White "Bortnyk, Olexandr"]
[Black "Gines Esteo, Pedro Antonio"]
[WhiteFideId "14120828"]
[BlackFideId "32080190"]
[WhiteElo "2723"]
[BlackElo "2422"]
[Result "1-0"]
[Round "08"]
[TimeControl "180+1"]
[Date "2022.11.22"]
[WhiteClock "0:02:07"]
[BlackClock "0:00:31"]

1. d4 {[%clk 0:02:53]}  Nf6 {[%clk 0:02:58]} 2. Nc3 {[%clk 0:02:49]}  d5 {[%clk 0:02:54]} 3. Bf4 {[%clk 0:02:49]}  e6 {[%clk 0:02:49]} 4. Nb5 {[%clk 0:02:49]}  Na6 {[%clk 0:02:49]} 5. e3 {[%clk 0:02:49]}  Be7 {[%clk 0:02:48]} 6. Nf3 {[%clk 0:02:49]}  O-O {[%clk 0:02:49]} 7. Ne5 {[%clk 0:02:50]}  c6 {[%clk 0:02:49]} 8. Nc3 {[%clk 0:02:51]}  c5 {[%clk 0:02:49]} 9. Bxa6 {[%clk 0:02:50]}  bxa6 {[%clk 0:02:50]} 10. Nc6 {[%clk 0:02:51]}  Qe8 {[%clk 0:02:50]} 11. Nxe7+ {[%clk 0:02:52]}  Qxe7 {[%clk 0:02:51]} 12. O-O {[%clk 0:02:52]}  a5 {[%clk 0:02:48]} 13. Bg5 {[%clk 0:02:53]}  Ba6 {[%clk 0:02:21]} 14. Re1 {[%clk 0:02:52]}  Rab8 {[%clk 0:02:22]} 15. Rb1 {[%clk 0:02:47]}  h6 {[%clk 0:01:54]} 16. Bh4 {[%clk 0:02:47]}  Rfc8 {[%clk 0:01:48]} 17. a3 {[%clk 0:02:41]}  Rb7 {[%clk 0:01:40]} 18. dxc5 {[%clk 0:02:41]}  Qxc5 {[%clk 0:01:28]} 19. Bxf6 {[%clk 0:02:40]}  gxf6 {[%clk 0:01:29]} 20. Qg4+ {[%clk 0:02:40]}  Kf8 {[%clk 0:01:27]} 21. Qh4 {[%clk 0:02:39]}  Ke7 {[%clk 0:01:19]} 22. e4 {[%clk 0:02:08]}  d4 {[%clk 0:01:15]} 23. Nd5+ {[%clk 0:02:07]}  exd5 {[%clk 0:01:14]} 24. exd5+ {[%clk 0:02:08]}  Kd7 {[%clk 0:00:31]} 25. Qxf6 {[%clk 0:02:08]}  Qxd5 {[%clk 0:00:31]} 26. Re7+ {[%clk 0:02:07]} 1-0


[Site "https://www.chess.com"]

[Event "Titled Tuesday Blitz November 22 Early 2022"]
[White "Boruchovsky, Avital"]
[Black "Ibarra Jerez, Jose Carlos"]
[WhiteFideId "2800055"]
[BlackFideId "2226332"]
[WhiteElo "2458"]
[BlackElo "2638"]
[Result "0-1"]
[Round "08"]
[TimeControl "180+1"]
[Date "2022.11.22"]
[WhiteClock "0:00:02"]
[BlackClock "0:00:18"]

1. e4 {[%clk 0:02:56]}  c5 {[%clk 0:02:59]} 2. Nf3 {[%clk 0:02:55]}  e6 {[%clk 0:03:00]} 3. d4 {[%clk 0:02:55]}  cxd4 {[%clk 0:03:01]} 4. Nxd4 {[%clk 0:02:56]}  Bc5 {[%clk 0:03:01]} 5. Nb3 {[%clk 0:02:50]}  Bb6 {[%clk 0:03:01]} 6. Nc3 {[%clk 0:02:49]}  Ne7 {[%clk 0:03:02]} 7. Bf4 {[%clk 0:02:44]}  d5 {[%clk 0:03:01]} 8. exd5 {[%clk 0:02:41]}  Nxd5 {[%clk 0:02:56]} 9. Nxd5 {[%clk 0:02:42]}  exd5 {[%clk 0:02:57]} 10. Bb5+ {[%clk 0:02:41]}  Nc6 {[%clk 0:02:57]} 11. O-O {[%clk 0:02:41]}  O-O {[%clk 0:02:57]} 12. c3 {[%clk 0:02:34]}  Qf6 {[%clk 0:02:44]} 13. Qd2 {[%clk 0:02:28]}  h6 {[%clk 0:02:44]} 14. Be3 {[%clk 0:02:22]}  Bc7 {[%clk 0:02:40]} 15. Qxd5 {[%clk 0:02:15]}  Rd8 {[%clk 0:02:36]} 16. Qh5 {[%clk 0:02:09]}  Ne5 {[%clk 0:02:34]} 17. Bd4 {[%clk 0:02:04]}  Rd5 {[%clk 0:02:24]} 18. Bc4 {[%clk 0:01:52]}  Rxd4 {[%clk 0:01:57]} 19. cxd4 {[%clk 0:01:43]}  Nxc4 {[%clk 0:01:57]} 20. Rfc1 {[%clk 0:01:31]}  b5 {[%clk 0:01:56]} 21. Qxb5 {[%clk 0:01:27]}  Ba6 {[%clk 0:01:38]} 22. Qd7 {[%clk 0:01:26]}  Bf4 {[%clk 0:01:32]} 23. Re1 {[%clk 0:01:07]}  Kh7 {[%clk 0:01:20]} 24. g3 {[%clk 0:01:02]}  Nb6 {[%clk 0:01:12]} 25. Qg4 {[%clk 0:00:52]}  Bd6 {[%clk 0:01:10]} 26. Nc5 {[%clk 0:00:51]}  Bc8 {[%clk 0:01:08]} 27. Qe4+ {[%clk 0:00:43]}  Bf5 {[%clk 0:01:08]} 28. Qf3 {[%clk 0:00:41]}  Qg6 {[%clk 0:00:55]} 29. Ne4 {[%clk 0:00:28]}  Bb4 {[%clk 0:00:54]} 30. Re3 {[%clk 0:00:22]}  Rd8 {[%clk 0:00:54]} 31. a3 {[%clk 0:00:21]}  Rxd4 {[%clk 0:00:45]} 32. Nc3 {[%clk 0:00:06]}  Bc5 {[%clk 0:00:37]} 33. Re5 {[%clk 0:00:05]}  Bg4 {[%clk 0:00:34]} 34. Qg2 {[%clk 0:00:01]}  Nd7 {[%clk 0:00:22]} 35. Re4 {[%clk 0:00:02]}  Rd2 {[%clk 0:00:22]} 36. Rf1 {[%clk 0:00:01]}  Bf5 {[%clk 0:00:20]} 37. Rf4 {[%clk 0:00:02]}  Bd3 {[%clk 0:00:20]} 38. Nd5 {[%clk 0:00:02]}  Bxf1 {[%clk 0:00:19]} 39. Qxf1 {[%clk 0:00:03]}  Rxd5 {[%clk 0:00:18]} 40. Kg2 {[%clk 0:00:02]}  Ne5 {[%clk 0:00:18]} 41. Qa6 {[%clk 0:00:02]}  Qxa6 {[%clk 0:00:18]} 0-1


[Site "https://www.chess.com"]

[Event "Titled Tuesday Blitz November 22 Early 2022"]
[White "Chigaev, Maksim"]
[Black "Nakamura, Hikaru"]
[WhiteFideId "4108116"]
[BlackFideId "2016192"]
[WhiteElo "2541"]
[BlackElo "2909"]
[Result "1/2-1/2"]
[Round "08"]
[TimeControl "180+1"]
[Date "2022.11.22"]
[WhiteClock "0:00:07"]
[BlackClock "0:00:13"]

1. e4 {[%clk 0:03:00]}  g6 {[%clk 0:02:59]} 2. d4 {[%clk 0:03:00]}  Bg7 {[%clk 0:03:00]} 3. Nc3 {[%clk 0:03:01]}  a6 {[%clk 0:03:00]} 4. h4 {[%clk 0:02:57]}  b5 {[%clk 0:02:57]} 5. h5 {[%clk 0:02:54]}  Bb7 {[%clk 0:02:57]} 6. h6 {[%clk 0:02:49]}  Bf8 {[%clk 0:02:57]} 7. d5 {[%clk 0:02:42]}  e5 {[%clk 0:02:38]} 8. g4 {[%clk 0:02:20]}  Bc5 {[%clk 0:02:30]} 9. g5 {[%clk 0:02:13]}  d6 {[%clk 0:02:28]} 10. Bh3 {[%clk 0:02:04]}  Nd7 {[%clk 0:02:23]} 11. a3 {[%clk 0:02:03]}  Ne7 {[%clk 0:02:21]} 12. Qf3 {[%clk 0:01:49]}  Rf8 {[%clk 0:01:57]} 13. Bxd7+ {[%clk 0:01:18]}  Qxd7 {[%clk 0:01:58]} 14. Be3 {[%clk 0:01:19]}  Nc8 {[%clk 0:01:40]} 15. Bxc5 {[%clk 0:01:10]}  dxc5 {[%clk 0:01:41]} 16. Qf6 {[%clk 0:01:10]}  Qe7 {[%clk 0:01:42]} 17. Nf3 {[%clk 0:01:07]}  Nd6 {[%clk 0:01:38]} 18. Nxe5 {[%clk 0:00:36]}  b4 {[%clk 0:01:25]} 19. Na4 {[%clk 0:00:28]}  Qxf6 {[%clk 0:01:11]} 20. gxf6 {[%clk 0:00:29]}  Nxe4 {[%clk 0:01:12]} 21. O-O-O {[%clk 0:00:29]}  O-O-O {[%clk 0:01:02]} 22. Rhe1 {[%clk 0:00:28]}  Nxf6 {[%clk 0:00:58]} 23. Nxc5 {[%clk 0:00:28]}  bxa3 {[%clk 0:00:57]} 24. bxa3 {[%clk 0:00:28]}  Bxd5 {[%clk 0:00:47]} 25. Nxa6 {[%clk 0:00:25]}  Ba8 {[%clk 0:00:18]} 26. Rxd8+ {[%clk 0:00:19]}  Kxd8 {[%clk 0:00:18]} 27. Rd1+ {[%clk 0:00:19]}  Kc8 {[%clk 0:00:17]} 28. Rd4 {[%clk 0:00:20]}  Nd5 {[%clk 0:00:12]} 29. Nc5 {[%clk 0:00:18]}  f6 {[%clk 0:00:11]} 30. Ned3 {[%clk 0:00:10]}  Re8 {[%clk 0:00:07]} 31. Kd2 {[%clk 0:00:10]}  g5 {[%clk 0:00:06]} 32. a4 {[%clk 0:00:11]}  f5 {[%clk 0:00:06]} 33. a5 {[%clk 0:00:11]}  f4 {[%clk 0:00:05]} 34. a6 {[%clk 0:00:09]}  Nb6 {[%clk 0:00:03]} 35. Kc1 {[%clk 0:00:08]}  Rd8 {[%clk 0:00:02]} 36. Rxd8+ {[%clk 0:00:06]}  Kxd8 {[%clk 0:00:03]} 37. Ne6+ {[%clk 0:00:07]}  Ke7 {[%clk 0:00:04]} 38. Nxg5 {[%clk 0:00:08]}  Kf6 {[%clk 0:00:04]} 39. Nxh7+ {[%clk 0:00:08]}  Kg6 {[%clk 0:00:05]} 40. Nf8+ {[%clk 0:00:08]}  Kxh6 {[%clk 0:00:06]} 41. Nxf4 {[%clk 0:00:08]}  Kg5 {[%clk 0:00:06]} 42. N4e6+ {[%clk 0:00:08]}  Kf5 {[%clk 0:00:07]} 43. Nxc7 {[%clk 0:00:08]}  Bh1 {[%clk 0:00:08]} 44. Nfe6 {[%clk 0:00:06]}  Ke5 {[%clk 0:00:08]} 45. Kd2 {[%clk 0:00:07]}  Kd6 {[%clk 0:00:08]} 46. f4 {[%clk 0:00:06]}  Be4 {[%clk 0:00:08]} 47. c3 {[%clk 0:00:04]}  Nc4+ {[%clk 0:00:08]} 48. Ke2 {[%clk 0:00:04]}  Bf5 {[%clk 0:00:08]} 49. a7 {[%clk 0:00:03]}  Nb6 {[%clk 0:00:08]} 50. Ke3 {[%clk 0:00:03]}  Bxe6 {[%clk 0:00:08]} 51. a8=Q {[%clk 0:00:03]}  Nxa8 {[%clk 0:00:08]} 52. Nxa8 {[%clk 0:00:04]}  Kc6 {[%clk 0:00:08]} 53. Kd4 {[%clk 0:00:04]}  Kb7 {[%clk 0:00:09]} 54. Ke5 {[%clk 0:00:04]}  Ba2 {[%clk 0:00:09]} 55. f5 {[%clk 0:00:04]}  Kxa8 {[%clk 0:00:10]} 56. f6 {[%clk 0:00:05]}  Kb7 {[%clk 0:00:10]} 57. Kd6 {[%clk 0:00:06]}  Kb6 {[%clk 0:00:11]} 58. Ke7 {[%clk 0:00:07]}  Kc5 {[%clk 0:00:11]} 59. f7 {[%clk 0:00:08]}  Bxf7 {[%clk 0:00:11]} 60. Kxf7 {[%clk 0:00:07]}  Kc4 {[%clk 0:00:12]} 61. Kf6 {[%clk 0:00:07]}  Kxc3 {[%clk 0:00:13]} 1/2-1/2


[Site "https://www.chess.com"]